[Event "Titled Tuesday Blitz January 10 Late 2023"]
[White "Wang, Alexander J"]
[Black "Wu, Brandon"]
[WhiteFideId "30955270"]
[BlackFideId "30909228"]
[WhiteElo "1815"]
[BlackElo "2123"]
[Result "0-1"]
[Round "03"]
[TimeControl "180+2"]
[Date "2023.01.10"]
[WhiteClock "0:01:42"]
[BlackClock "0:02:23"]

1. e4 {[%clk 0:00:00]}  c6 {[%clk 0:00:00]} 2. d4 {[%clk 0:03:00]}  d5 {[%clk 0:02:59]} 3. f3 {[%clk 0:02:52]}  Qb6 {[%clk 0:03:00]} 4. Nc3 {[%clk 0:02:52]}  dxe4 {[%clk 0:02:57]} 5. fxe4 {[%clk 0:02:51]}  e5 {[%clk 0:02:58]} 6. dxe5 {[%clk 0:02:51]}  Bc5 {[%clk 0:02:58]} 7. Nf3 {[%clk 0:02:47]}  Bf2+ {[%clk 0:02:56]} 8. Ke2 {[%clk 0:02:46]}  Be6 {[%clk 0:02:53]} 9. Qd3 {[%clk 0:02:45]}  Nd7 {[%clk 0:02:50]} 10. Na4 {[%clk 0:02:38]}  Qa5 {[%clk 0:02:43]} 11. Kxf2 {[%clk 0:02:28]}  Qxa4 {[%clk 0:02:43]} 12. Be3 {[%clk 0:02:27]}  O-O-O {[%clk 0:02:43]} 13. b3 {[%clk 0:02:24]}  Qa5 {[%clk 0:02:42]} 14. b4 {[%clk 0:02:15]}  Qxb4 {[%clk 0:02:40]} 15. c3 {[%clk 0:01:59]}  Qa5 {[%clk 0:02:34]} 16. Rd1 {[%clk 0:01:57]}  Nh6 {[%clk 0:02:27]} 17. h3 {[%clk 0:01:42]}  Nxe5 {[%clk 0:02:23]} 0-1


[Site "https://www.chess.com"]

[Event "Titled Tuesday Blitz January 10 Late 2023"]
[White "De Souza, Cristiano Gomes"]
[Black "Ezat, Mohamed"]
[WhiteFideId "2151758"]
[BlackFideId "10600906"]
[WhiteElo "2018"]
[BlackElo "2402"]
[Result "0-1"]
[Round "03"]
[TimeControl "180+2"]
[Date "2023.01.10"]
[WhiteClock "0:02:26"]
[BlackClock "0:01:49"]

1. d4 {[%clk 0:00:00]}  Nf6 {[%clk 0:00:00]} 2. c4 {[%clk 0:02:59]}  e6 {[%clk 0:02:58]} 3. Nf3 {[%clk 0:02:59]}  Bb4+ {[%clk 0:02:57]} 4. Bd2 {[%clk 0:02:59]}  a5 {[%clk 0:02:55]} 5. Nc3 {[%clk 0:02:59]}  O-O {[%clk 0:02:54]} 6. g3 {[%clk 0:02:58]}  d5 {[%clk 0:02:52]} 7. cxd5 {[%clk 0:02:57]}  exd5 {[%clk 0:02:51]} 8. Bg2 {[%clk 0:02:56]}  Re8 {[%clk 0:02:50]} 9. O-O {[%clk 0:02:55]}  Bxc3 {[%clk 0:02:50]} 10. Bxc3 {[%clk 0:02:54]}  Ne4 {[%clk 0:02:48]} 11. Rc1 {[%clk 0:02:55]}  Nc6 {[%clk 0:02:48]} 12. a3 {[%clk 0:02:54]}  Bg4 {[%clk 0:02:47]} 13. h3 {[%clk 0:02:54]}  Bh5 {[%clk 0:02:43]} 14. Re1 {[%clk 0:02:53]}  Qd7 {[%clk 0:02:38]} 15. Ne5 {[%clk 0:02:48]}  Nxe5 {[%clk 0:02:33]} 16. dxe5 {[%clk 0:02:44]}  Nxc3 {[%clk 0:02:31]} 17. Rxc3 {[%clk 0:02:44]}  c6 {[%clk 0:02:27]} 18. f4 {[%clk 0:02:41]}  f6 {[%clk 0:02:19]} 19. g4 {[%clk 0:02:37]}  Bf7 {[%clk 0:02:06]} 20. exf6 {[%clk 0:02:36]}  gxf6 {[%clk 0:02:03]} 21. e4 {[%clk 0:02:35]}  d4 {[%clk 0:02:02]} 22. Rg3 {[%clk 0:02:35]}  c5 {[%clk 0:02:02]} 23. g5 {[%clk 0:02:29]}  f5 {[%clk 0:01:56]} 24. exf5 {[%clk 0:02:29]}  Qxf5 {[%clk 0:01:52]} 25. Re6 {[%clk 0:02:26]}  Rxe6 {[%clk 0:01:49]} 0-1


[Site "https://www.chess.com"]

[Event "Titled Tuesday Blitz January 10 Late 2023"]
[White "Ansh M Shah"]
[Black "Stavri, Gligor"]
[WhiteFideId "25033379"]
[BlackFideId "4706013"]
[WhiteElo "2171"]
[BlackElo "1867"]
[Result "1/2-1/2"]
[Round "03"]
[TimeControl "180+2"]
[Date "2023.01.10"]
[WhiteClock "0:00:18"]
[BlackClock "0:00:02"]

1. d4 {[%clk 0:00:00]}  Nf6 {[%clk 0:00:00]} 2. c4 {[%clk 0:03:00]}  g6 {[%clk 0:02:59]} 3. h4 {[%clk 0:03:01]}  c5 {[%clk 0:02:59]} 4. d5 {[%clk 0:03:01]}  d6 {[%clk 0:02:45]} 5. Nc3 {[%clk 0:03:01]}  Bg7 {[%clk 0:02:45]} 6. e4 {[%clk 0:03:00]}  e6 {[%clk 0:02:45]} 7. Be2 {[%clk 0:03:01]}  exd5 {[%clk 0:02:43]} 8. exd5 {[%clk 0:03:01]}  O-O {[%clk 0:02:43]} 9. h5 {[%clk 0:03:02]}  Re8 {[%clk 0:02:43]} 10. Kf1 {[%clk 0:03:03]}  Nbd7 {[%clk 0:02:38]} 11. h6 {[%clk 0:03:02]}  Bh8 {[%clk 0:02:27]} 12. Nf3 {[%clk 0:02:44]}  Ne5 {[%clk 0:02:24]} 13. Nxe5 {[%clk 0:02:45]}  Rxe5 {[%clk 0:02:23]} 14. Bf4 {[%clk 0:02:44]}  Re7 {[%clk 0:02:20]} 15. Bf3 {[%clk 0:02:44]}  a6 {[%clk 0:02:10]} 16. a4 {[%clk 0:02:42]}  Bf5 {[%clk 0:02:09]} 17. g3 {[%clk 0:02:36]}  Qd7 {[%clk 0:02:06]} 18. Kg2 {[%clk 0:02:30]}  Rae8 {[%clk 0:02:04]} 19. Qd2 {[%clk 0:02:30]}  Bg4 {[%clk 0:02:04]} 20. Bxg4 {[%clk 0:02:25]}  Nxg4 {[%clk 0:02:00]} 21. Rhe1 {[%clk 0:02:01]}  Bd4 {[%clk 0:01:59]} 22. f3 {[%clk 0:02:00]}  Ne3+ {[%clk 0:01:52]} 23. Bxe3 {[%clk 0:01:43]}  Bxe3 {[%clk 0:00:28]} 24. Qd3 {[%clk 0:01:41]}  Bxh6 {[%clk 0:00:25]} 25. Ne4 {[%clk 0:01:38]}  Bg7 {[%clk 0:00:26]} 26. Re2 {[%clk 0:01:35]}  f5 {[%clk 0:00:24]} 27. Nc3 {[%clk 0:01:13]}  Rxe2+ {[%clk 0:00:24]} 28. Nxe2 {[%clk 0:01:12]}  Qe7 {[%clk 0:00:19]} 29. Kf2 {[%clk 0:01:11]}  Qe5 {[%clk 0:00:18]} 30. Rb1 {[%clk 0:01:11]}  g5 {[%clk 0:00:15]} 31. b4 {[%clk 0:01:02]}  b6 {[%clk 0:00:13]} 32. a5 {[%clk 0:00:58]}  cxb4 {[%clk 0:00:07]} 33. axb6 {[%clk 0:00:55]}  a5 {[%clk 0:00:06]} 34. f4 {[%clk 0:00:55]}  Qf6 {[%clk 0:00:04]} 35. c5 {[%clk 0:00:42]}  dxc5 {[%clk 0:00:04]} 36. Qb5 {[%clk 0:00:25]}  Rb8 {[%clk 0:00:04]} 37. b7 {[%clk 0:00:24]}  Qe7 {[%clk 0:00:03]} 38. Qxa5 {[%clk 0:00:23]}  Qxb7 {[%clk 0:00:02]} 39. Qxc5 {[%clk 0:00:19]}  Rd8 {[%clk 0:00:02]} 40. Rxb4 {[%clk 0:00:18]}  Qxd5 {[%clk 0:00:01]} 41. Qxd5+ {[%clk 0:00:18]}  Rxd5 {[%clk 0:00:02]} 42. Rb8+ {[%clk 0:00:18]}  Kf7 {[%clk 0:00:03]} 43. Rb7+ {[%clk 0:00:18]}  Kg6 {[%clk 0:00:03]} 44. Rb6+ {[%clk 0:00:18]}  Kh5 {[%clk 0:00:03]} 45. fxg5 {[%clk 0:00:18]}  Be5 {[%clk 0:00:03]} 46. Nf4+ {[%clk 0:00:18]}  Bxf4 {[%clk 0:00:03]} 47. gxf4 {[%clk 0:00:16]}  Kg4 {[%clk 0:00:04]} 48. Ke3 {[%clk 0:00:17]}  Rd7 {[%clk 0:00:04]} 49. Re6 {[%clk 0:00:17]}  Ra7 {[%clk 0:00:04]} 50. g6 {[%clk 0:00:17]}  Ra3+ {[%clk 0:00:03]} 51. Kd4 {[%clk 0:00:17]}  hxg6 {[%clk 0:00:03]} 52. Rxg6+ {[%clk 0:00:17]}  Kxf4 {[%clk 0:00:03]} 53. Rg1 {[%clk 0:00:17]}  Kf3 {[%clk 0:00:04]} 54. Rf1+ {[%clk 0:00:16]}  Kg4 {[%clk 0:00:04]} 55. Ke5 {[%clk 0:00:17]}  Re3+ {[%clk 0:00:04]} 56. Kd4 {[%clk 0:00:17]}  Re8 {[%clk 0:00:04]} 57. Rg1+ {[%clk 0:00:17]}  Kf4 {[%clk 0:00:03]} 58. Rf1+ {[%clk 0:00:17]}  Kg4 {[%clk 0:00:03]} 59. Rg1+ {[%clk 0:00:17]}  Kh4 {[%clk 0:00:03]} 60. Rf1 {[%clk 0:00:18]}  Kg4 {[%clk 0:00:02]} 1/2-1/2


[Site "https://www.chess.com"]

[Event "Titled Tuesday Blitz January 10 Late 2023"]
[White "Atanasov, Radislav"]
[Black "Estrada Nieto, Julian"]
[WhiteFideId "2901471"]
[BlackFideId "5101018"]
[WhiteElo "2025"]
[BlackElo "2215"]
[Result "1-0"]
[Round "03"]
[TimeControl "180+2"]
[Date "2023.01.10"]
[WhiteClock "0:00:22"]
[BlackClock "0:00:08"]

1. e4 {[%clk 0:00:00]}  e5 {[%clk 0:00:00]} 2. Nf3 {[%clk 0:02:59]}  Nc6 {[%clk 0:02:44]} 3. Bb5 {[%clk 0:02:59]}  a6 {[%clk 0:02:44]} 4. Ba4 {[%clk 0:02:59]}  Nf6 {[%clk 0:02:44]} 5. O-O {[%clk 0:02:59]}  Be7 {[%clk 0:02:44]} 6. Re1 {[%clk 0:02:59]}  b5 {[%clk 0:02:45]} 7. Bb3 {[%clk 0:02:59]}  d6 {[%clk 0:02:45]} 8. c3 {[%clk 0:03:00]}  O-O {[%clk 0:02:45]} 9. h3 {[%clk 0:02:58]}  Bb7 {[%clk 0:02:41]} 10. d4 {[%clk 0:02:58]}  Re8 {[%clk 0:02:41]} 11. Nbd2 {[%clk 0:02:58]}  Bf8 {[%clk 0:02:41]} 12. Bc2 {[%clk 0:02:57]}  h6 {[%clk 0:02:40]} 13. a4 {[%clk 0:02:58]}  exd4 {[%clk 0:02:40]} 14. cxd4 {[%clk 0:02:56]}  Nb4 {[%clk 0:02:40]} 15. Bb1 {[%clk 0:02:56]}  c5 {[%clk 0:02:40]} 16. d5 {[%clk 0:02:56]}  Nd7 {[%clk 0:02:40]} 17. Ra3 {[%clk 0:02:56]}  c4 {[%clk 0:02:40]} 18. Nh2 {[%clk 0:02:49]}  Ne5 {[%clk 0:02:38]} 19. Rg3 {[%clk 0:02:40]}  Ned3 {[%clk 0:02:32]} 20. Rf1 {[%clk 0:02:35]}  g6 {[%clk 0:02:25]} 21. f4 {[%clk 0:02:22]}  Bg7 {[%clk 0:02:13]} 22. Ng4 {[%clk 0:01:42]}  h5 {[%clk 0:02:01]} 23. Ne3 {[%clk 0:01:03]}  Qh4 {[%clk 0:01:49]} 24. Qf3 {[%clk 0:01:02]}  Bd4 {[%clk 0:01:35]} 25. Kh2 {[%clk 0:01:01]}  Re7 {[%clk 0:01:29]} 26. e5 {[%clk 0:01:00]}  Bxe3 {[%clk 0:01:09]} 27. Qxe3 {[%clk 0:01:00]}  Nxd5 {[%clk 0:00:43]} 28. Qf2 {[%clk 0:00:58]}  dxe5 {[%clk 0:00:43]} 29. Rxg6+ {[%clk 0:00:33]}  fxg6 {[%clk 0:00:40]} 30. Qxh4 {[%clk 0:00:33]}  Rf7 {[%clk 0:00:38]} 31. f5 {[%clk 0:00:33]}  Raf8 {[%clk 0:00:20]} 32. Ne4 {[%clk 0:00:31]}  N5f4 {[%clk 0:00:18]} 33. fxg6 {[%clk 0:00:27]}  Nxg6 {[%clk 0:00:14]} 34. Qxh5 {[%clk 0:00:25]}  Rxf1 {[%clk 0:00:13]} 35. Qxg6+ {[%clk 0:00:25]}  Kh8 {[%clk 0:00:12]} 36. Bh6 {[%clk 0:00:25]}  R8f7 {[%clk 0:00:12]} 37. Ng5 {[%clk 0:00:25]}  R1f5 {[%clk 0:00:11]} 38. Nxf7+ {[%clk 0:00:22]}  Rxf7 {[%clk 0:00:09]} 39. Qxf7 {[%clk 0:00:22]}  e4 {[%clk 0:00:08]} 40. Qg7# {[%clk 0:00:22]} 1-0


[Site "https://www.chess.com"]

[Event "Titled Tuesday Blitz January 10 Late 2023"]
[White "Besedes, Danilo"]
[Black "Smith, Garrett L"]
[WhiteFideId "946796"]
[BlackFideId "2024829"]
[WhiteElo "2297"]
[BlackElo "2047"]
[Result "1-0"]
[Round "03"]
[TimeControl "180+2"]
[Date "2023.01.10"]
[WhiteClock "0:00:54"]
[BlackClock "0:01:21"]

1. Nf3 {[%clk 0:00:00]}  c5 {[%clk 0:00:00]} 2. c4 {[%clk 0:03:00]}  Nc6 {[%clk 0:03:00]} 3. Nc3 {[%clk 0:03:00]}  e5 {[%clk 0:03:00]} 4. g3 {[%clk 0:02:59]}  Nf6 {[%clk 0:03:00]} 5. Bg2 {[%clk 0:02:59]}  d6 {[%clk 0:03:00]} 6. O-O {[%clk 0:02:59]}  Be7 {[%clk 0:03:00]} 7. d3 {[%clk 0:02:58]}  h6 {[%clk 0:02:59]} 8. Rb1 {[%clk 0:02:58]}  Be6 {[%clk 0:02:59]} 9. a3 {[%clk 0:02:58]}  a5 {[%clk 0:02:57]} 10. Nd2 {[%clk 0:02:58]}  d5 {[%clk 0:02:57]} 11. cxd5 {[%clk 0:02:55]}  Nxd5 {[%clk 0:02:57]} 12. Nc4 {[%clk 0:02:54]}  Rb8 {[%clk 0:02:58]} 13. Bd2 {[%clk 0:02:40]}  O-O {[%clk 0:02:46]} 14. Nxd5 {[%clk 0:02:23]}  Bxd5 {[%clk 0:02:41]} 15. Bxd5 {[%clk 0:02:20]}  Qxd5 {[%clk 0:02:40]} 16. Nxa5 {[%clk 0:02:20]}  Rfd8 {[%clk 0:02:40]} 17. Nxc6 {[%clk 0:02:20]}  bxc6 {[%clk 0:02:15]} 18. Qc2 {[%clk 0:02:17]}  Rb3 {[%clk 0:02:09]} 19. Bc3 {[%clk 0:02:16]}  c4 {[%clk 0:02:05]} 20. dxc4 {[%clk 0:02:11]}  Qxc4 {[%clk 0:01:59]} 21. Rbd1 {[%clk 0:02:11]}  Rdb8 {[%clk 0:01:59]} 22. Qd3 {[%clk 0:02:11]}  Qe6 {[%clk 0:01:54]} 23. Qd7 {[%clk 0:02:04]}  Qxd7 {[%clk 0:01:51]} 24. Rxd7 {[%clk 0:01:25]}  Bf6 {[%clk 0:01:36]} 25. Rc7 {[%clk 0:01:23]}  e4 {[%clk 0:01:34]} 26. Bxf6 {[%clk 0:01:17]}  gxf6 {[%clk 0:01:30]} 27. Rxc6 {[%clk 0:01:16]}  Kg7 {[%clk 0:01:31]} 28. e3 {[%clk 0:01:15]}  Rxb2 {[%clk 0:01:31]} 29. Ra1 {[%clk 0:01:03]}  Rb1+ {[%clk 0:01:30]} 30. Rc1 {[%clk 0:01:00]}  Rxc1+ {[%clk 0:01:30]} 31. Rxc1 {[%clk 0:00:59]}  Rb2 {[%clk 0:01:30]} 32. Ra1 {[%clk 0:00:59]}  Rb5 {[%clk 0:01:28]} 33. a4 {[%clk 0:00:59]}  Ra5 {[%clk 0:01:28]} 34. Kf1 {[%clk 0:00:59]}  Kg6 {[%clk 0:01:28]} 35. Ke2 {[%clk 0:00:56]}  Kf5 {[%clk 0:01:26]} 36. Kd2 {[%clk 0:00:57]}  Kg4 {[%clk 0:01:26]} 37. Kc3 {[%clk 0:00:54]}  Kf3 {[%clk 0:01:24]} 38. Ra2 {[%clk 0:00:55]}  Ra8 {[%clk 0:01:25]} 39. a5 {[%clk 0:00:55]}  Rc8+ {[%clk 0:01:21]} 40. Kd4 {[%clk 0:00:54]} 1-0


[Site "https://www.chess.com"]

[Event "Titled Tuesday Blitz January 10 Late 2023"]
[White "Miszler, Levente"]
[Black "Kovacevic, Radmila"]
[WhiteFideId "763276"]
[BlackFideId "933171"]
[WhiteElo "2271"]
[BlackElo "2106"]
[Result "1/2-1/2"]
[Round "03"]
[TimeControl "180+2"]
[Date "2023.01.10"]
[WhiteClock "0:00:36"]
[BlackClock "0:00:09"]

1. e4 {[%clk 0:00:00]}  e5 {[%clk 0:00:00]} 2. Nf3 {[%clk 0:03:00]}  d5 {[%clk 0:03:00]} 3. Nxe5 {[%clk 0:02:56]}  Bd6 {[%clk 0:03:00]} 4. d4 {[%clk 0:02:43]}  dxe4 {[%clk 0:02:58]} 5. Nc4 {[%clk 0:02:41]}  Be7 {[%clk 0:02:58]} 6. Nc3 {[%clk 0:02:35]}  Nf6 {[%clk 0:02:56]} 7. Bg5 {[%clk 0:02:31]}  O-O {[%clk 0:02:57]} 8. Qd2 {[%clk 0:02:26]}  c6 {[%clk 0:02:53]} 9. Be2 {[%clk 0:02:20]}  b5 {[%clk 0:02:50]} 10. Ne5 {[%clk 0:02:19]}  Bf5 {[%clk 0:02:46]} 11. O-O {[%clk 0:02:18]}  h6 {[%clk 0:02:34]} 12. Bh4 {[%clk 0:02:14]}  b4 {[%clk 0:02:31]} 13. Na4 {[%clk 0:02:14]}  Nd5 {[%clk 0:02:13]} 14. Bxe7 {[%clk 0:02:12]}  Qxe7 {[%clk 0:02:06]} 15. Nc5 {[%clk 0:02:05]}  f6 {[%clk 0:02:07]} 16. Nc4 {[%clk 0:02:04]}  Nd7 {[%clk 0:02:00]} 17. Nxd7 {[%clk 0:01:54]}  Qxd7 {[%clk 0:01:49]} 18. Ne3 {[%clk 0:01:54]}  Be6 {[%clk 0:01:50]} 19. Bc4 {[%clk 0:01:54]}  Rab8 {[%clk 0:01:47]} 20. a3 {[%clk 0:01:52]}  a5 {[%clk 0:01:38]} 21. axb4 {[%clk 0:01:44]}  axb4 {[%clk 0:01:35]} 22. Ra6 {[%clk 0:01:44]}  Nxe3 {[%clk 0:01:32]} 23. Bxe6+ {[%clk 0:01:43]}  Qxe6 {[%clk 0:01:24]} 24. Qxe3 {[%clk 0:01:42]}  Qc4 {[%clk 0:01:24]} 25. Qb3 {[%clk 0:01:43]}  Qxb3 {[%clk 0:01:24]} 26. cxb3 {[%clk 0:01:41]}  Rfc8 {[%clk 0:01:21]} 27. Rc1 {[%clk 0:01:42]}  Rd8 {[%clk 0:01:19]} 28. Raxc6 {[%clk 0:01:40]}  Rxd4 {[%clk 0:01:00]} 29. Kf1 {[%clk 0:01:33]}  Rd2 {[%clk 0:00:59]} 30. R1c2 {[%clk 0:01:34]}  Rbd8 {[%clk 0:00:52]} 31. Ke1 {[%clk 0:01:30]}  R2d3 {[%clk 0:00:44]} 32. Re6 {[%clk 0:01:29]}  R8d4 {[%clk 0:00:40]} 33. Re7 {[%clk 0:01:27]}  Rxb3 {[%clk 0:00:23]} 34. Rcc7 {[%clk 0:01:27]}  Rxb2 {[%clk 0:00:21]} 35. Rxg7+ {[%clk 0:01:26]}  Kf8 {[%clk 0:00:20]} 36. Rh7 {[%clk 0:01:24]}  Kg8 {[%clk 0:00:21]} 37. Rxh6 {[%clk 0:01:20]}  Rd3 {[%clk 0:00:21]} 38. Rg6+ {[%clk 0:01:14]}  Kh8 {[%clk 0:00:20]} 39. g3 {[%clk 0:01:11]}  Rb1+ {[%clk 0:00:19]} 40. Ke2 {[%clk 0:01:06]}  Rb2+ {[%clk 0:00:18]} 41. Kf1 {[%clk 0:01:07]}  Rf3 {[%clk 0:00:17]} 42. Rh6+ {[%clk 0:01:06]}  Kg8 {[%clk 0:00:16]} 43. Rg6+ {[%clk 0:01:02]}  Kf8 {[%clk 0:00:16]} 44. Rh6 {[%clk 0:01:03]}  Rfxf2+ {[%clk 0:00:16]} 45. Kg1 {[%clk 0:01:03]}  Kg8 {[%clk 0:00:14]} 46. Rg6+ {[%clk 0:01:03]}  Kh8 {[%clk 0:00:11]} 47. Rh6+ {[%clk 0:01:00]}  Kg8 {[%clk 0:00:09]} 48. Rhh7 {[%clk 0:01:00]}  Rg2+ {[%clk 0:00:09]} 49. Kh1 {[%clk 0:00:43]}  Rgd2 {[%clk 0:00:09]} 50. Rhg7+ {[%clk 0:00:43]}  Kf8 {[%clk 0:00:08]} 51. Rgf7+ {[%clk 0:00:37]}  Kg8 {[%clk 0:00:08]} 52. Rg7+ {[%clk 0:00:37]}  Kf8 {[%clk 0:00:08]} 53. Rgf7+ {[%clk 0:00:37]}  Kg8 {[%clk 0:00:09]} 54. Rg7+ {[%clk 0:00:36]} 1/2-1/2


[Site "https://www.chess.com"]

[Event "Titled Tuesday Blitz January 10 Late 2023"]
[White "Kabilov, Amin"]
[Black "Dedona, Mark"]
[WhiteFideId "14700859"]
[BlackFideId "30920256"]
[WhiteElo "2207"]
[BlackElo "1662"]
[Result "1-0"]
[Round "03"]
[TimeControl "180+2"]
[Date "2023.01.10"]
[WhiteClock "0:00:54"]
[BlackClock "0:01:38"]

1. e4 {[%clk 0:00:00]}  c5 {[%clk 0:00:00]} 2. Nf3 {[%clk 0:02:55]}  d6 {[%clk 0:02:59]} 3. a3 {[%clk 0:02:54]}  Nf6 {[%clk 0:02:59]} 4. Nc3 {[%clk 0:02:51]}  g6 {[%clk 0:02:56]} 5. b4 {[%clk 0:02:52]}  cxb4 {[%clk 0:02:56]} 6. axb4 {[%clk 0:02:52]}  Nc6 {[%clk 0:02:56]} 7. b5 {[%clk 0:02:52]}  Ne5 {[%clk 0:02:55]} 8. Nxe5 {[%clk 0:02:51]}  dxe5 {[%clk 0:02:55]} 9. Bc4 {[%clk 0:02:50]}  Bg7 {[%clk 0:02:56]} 10. O-O {[%clk 0:02:49]}  O-O {[%clk 0:02:53]} 11. Ba3 {[%clk 0:02:48]}  Qc7 {[%clk 0:02:53]} 12. d3 {[%clk 0:02:44]}  Rd8 {[%clk 0:02:45]} 13. Qe2 {[%clk 0:02:39]}  b6 {[%clk 0:02:45]} 14. f4 {[%clk 0:02:08]}  exf4 {[%clk 0:02:41]} 15. e5 {[%clk 0:01:47]}  Ng4 {[%clk 0:02:34]} 16. Nd5 {[%clk 0:01:45]}  Qxe5 {[%clk 0:02:34]} 17. Nxe7+ {[%clk 0:01:36]}  Kh8 {[%clk 0:02:24]} 18. Rae1 {[%clk 0:01:26]}  Qxe2 {[%clk 0:02:23]} 19. Rxe2 {[%clk 0:01:05]}  Bd4+ {[%clk 0:02:19]} 20. Kh1 {[%clk 0:01:05]}  Be3 {[%clk 0:01:40]} 21. Rxe3 {[%clk 0:01:05]}  Nxe3 {[%clk 0:01:40]} 22. Bb2+ {[%clk 0:00:54]}  f6 {[%clk 0:01:38]} 23. Bxf6# {[%clk 0:00:54]} 1-0


[Site "https://www.chess.com"]

[Event "Titled Tuesday Blitz January 10 Late 2023"]
[White "Michalski, Olaf"]
[Black "Nikologorsky, Matfei"]
[WhiteFideId "1106740"]
[BlackFideId "24102474"]
[WhiteElo "2273"]
[BlackElo "2182"]
[Result "0-1"]
[Round "03"]
[TimeControl "180+2"]
[Date "2023.01.10"]
[WhiteClock "0:00:05"]
[BlackClock "0:00:06"]

1. d4 {[%clk 0:00:00]}  Nf6 {[%clk 0:00:00]} 2. c4 {[%clk 0:02:55]}  e6 {[%clk 0:02:58]} 3. Nf3 {[%clk 0:02:55]}  b6 {[%clk 0:02:58]} 4. a3 {[%clk 0:02:55]}  Bb7 {[%clk 0:02:57]} 5. Nc3 {[%clk 0:02:55]}  Be7 {[%clk 0:02:56]} 6. d5 {[%clk 0:02:54]}  exd5 {[%clk 0:02:47]} 7. cxd5 {[%clk 0:02:51]}  d6 {[%clk 0:02:28]} 8. e4 {[%clk 0:02:50]}  Nbd7 {[%clk 0:02:29]} 9. b4 {[%clk 0:02:44]}  O-O {[%clk 0:02:28]} 10. Be2 {[%clk 0:02:36]}  Re8 {[%clk 0:02:27]} 11. O-O {[%clk 0:02:20]}  a5 {[%clk 0:02:26]} 12. Rb1 {[%clk 0:02:20]}  axb4 {[%clk 0:02:23]} 13. axb4 {[%clk 0:02:19]}  Ng4 {[%clk 0:02:21]} 14. Qc2 {[%clk 0:02:19]}  Bf6 {[%clk 0:02:12]} 15. Nb5 {[%clk 0:02:12]}  Ba6 {[%clk 0:02:08]} 16. h3 {[%clk 0:02:05]}  Nge5 {[%clk 0:01:34]} 17. Nfd4 {[%clk 0:01:43]}  Bxb5 {[%clk 0:01:25]} 18. Nxb5 {[%clk 0:01:43]}  Rc8 {[%clk 0:01:11]} 19. f4 {[%clk 0:01:41]}  Ng6 {[%clk 0:01:11]} 20. Bf3 {[%clk 0:01:27]}  Nh4 {[%clk 0:01:11]} 21. Bg4 {[%clk 0:01:24]}  g6 {[%clk 0:01:03]} 22. g3 {[%clk 0:01:23]}  h5 {[%clk 0:00:58]} 23. Be2 {[%clk 0:01:05]}  Qe7 {[%clk 0:00:48]} 24. gxh4 {[%clk 0:01:00]}  Qxe4 {[%clk 0:00:46]} 25. Qxe4 {[%clk 0:00:57]}  Rxe4 {[%clk 0:00:45]} 26. Bd3 {[%clk 0:00:55]}  Re7 {[%clk 0:00:46]} 27. Bb2 {[%clk 0:00:49]}  Bxb2 {[%clk 0:00:40]} 28. Rxb2 {[%clk 0:00:43]}  Re3 {[%clk 0:00:34]} 29. Bb1 {[%clk 0:00:43]}  Nf6 {[%clk 0:00:34]} 30. Kg2 {[%clk 0:00:25]}  Nxd5 {[%clk 0:00:32]} 31. Rf3 {[%clk 0:00:20]}  Re1 {[%clk 0:00:31]} 32. Ba2 {[%clk 0:00:19]}  Nf6 {[%clk 0:00:27]} 33. Rc2 {[%clk 0:00:19]}  Rce8 {[%clk 0:00:17]} 34. Nxc7 {[%clk 0:00:19]}  R8e4 {[%clk 0:00:14]} 35. Nd5 {[%clk 0:00:18]}  Nxd5 {[%clk 0:00:14]} 36. Bxd5 {[%clk 0:00:13]}  Rxb4 {[%clk 0:00:13]} 37. Rc7 {[%clk 0:00:13]}  Rb2+ {[%clk 0:00:14]} 38. Rf2 {[%clk 0:00:12]}  Rbb1 {[%clk 0:00:13]} 39. Rxf7 {[%clk 0:00:12]}  Rg1+ {[%clk 0:00:13]} 40. Kh2 {[%clk 0:00:11]}  Kh8 {[%clk 0:00:12]} 41. Rf8+ {[%clk 0:00:12]}  Kg7 {[%clk 0:00:11]} 42. Rf7+ {[%clk 0:00:11]}  Kh6 {[%clk 0:00:11]} 43. Rb7 {[%clk 0:00:11]}  Rgd1 {[%clk 0:00:11]} 44. Bg2 {[%clk 0:00:10]}  Rd4 {[%clk 0:00:10]} 45. Kg3 {[%clk 0:00:09]}  Rb5 {[%clk 0:00:09]} 46. Re2 {[%clk 0:00:09]}  Rb3+ {[%clk 0:00:08]} 47. Bf3 {[%clk 0:00:08]}  Rdd3 {[%clk 0:00:08]} 48. Rf2 {[%clk 0:00:07]}  b5 {[%clk 0:00:08]} 49. Rb6 {[%clk 0:00:08]}  b4 {[%clk 0:00:08]} 50. Kg2 {[%clk 0:00:07]}  Rbc3 {[%clk 0:00:08]} 51. Be4 {[%clk 0:00:08]}  Rd4 {[%clk 0:00:08]} 52. Bb1 {[%clk 0:00:07]}  Kg7 {[%clk 0:00:07]} 53. Re2 {[%clk 0:00:07]}  Kf6 {[%clk 0:00:07]} 54. Re8 {[%clk 0:00:06]}  b3 {[%clk 0:00:07]} 55. Reb8 {[%clk 0:00:06]}  Rd2+ {[%clk 0:00:06]} 56. Kf1 {[%clk 0:00:05]}  Rc1# {[%clk 0:00:06]} 0-1


[Site "https://www.chess.com"]

[Event "Titled Tuesday Blitz January 10 Late 2023"]
[White "Golding, Alex"]
[Black "Kho, Darrell"]
[WhiteFideId "427241"]
[BlackFideId "1019317"]
[WhiteElo "2318"]
[BlackElo "2075"]
[Result "1-0"]
[Round "03"]
[TimeControl "180+2"]
[Date "2023.01.10"]
[WhiteClock "0:00:24"]
[BlackClock "0:00:02"]

1. g3 {[%clk 0:00:00]}  e5 {[%clk 0:00:00]} 2. Bg2 {[%clk 0:02:55]}  d5 {[%clk 0:02:57]} 3. c4 {[%clk 0:02:55]}  d4 {[%clk 0:02:57]} 4. d3 {[%clk 0:02:55]}  Nc6 {[%clk 0:02:48]} 5. a3 {[%clk 0:02:51]}  a5 {[%clk 0:02:42]} 6. Nf3 {[%clk 0:02:47]}  Nf6 {[%clk 0:02:38]} 7. O-O {[%clk 0:02:34]}  Be7 {[%clk 0:02:36]} 8. e3 {[%clk 0:02:34]}  O-O {[%clk 0:02:25]} 9. exd4 {[%clk 0:02:26]}  exd4 {[%clk 0:02:17]} 10. h3 {[%clk 0:02:23]}  h6 {[%clk 0:02:14]} 11. Re1 {[%clk 0:02:24]}  Bf5 {[%clk 0:01:53]} 12. Bf4 {[%clk 0:02:23]}  Nd7 {[%clk 0:01:52]} 13. g4 {[%clk 0:02:19]}  Bh7 {[%clk 0:01:44]} 14. Re2 {[%clk 0:02:13]}  Nc5 {[%clk 0:01:36]} 15. Ne1 {[%clk 0:02:03]}  a4 {[%clk 0:01:30]} 16. Qc2 {[%clk 0:02:03]}  Bd6 {[%clk 0:01:07]} 17. Bxd6 {[%clk 0:01:47]}  Qxd6 {[%clk 0:00:45]} 18. Nd2 {[%clk 0:01:33]}  f5 {[%clk 0:00:46]} 19. b4 {[%clk 0:01:33]}  axb3 {[%clk 0:00:38]} 20. Nxb3 {[%clk 0:01:19]}  fxg4 {[%clk 0:00:33]} 21. hxg4 {[%clk 0:01:19]}  Nxb3 {[%clk 0:00:27]} 22. Qxb3 {[%clk 0:01:19]}  Qf4 {[%clk 0:00:17]} 23. Qxb7 {[%clk 0:01:19]}  Ne5 {[%clk 0:00:17]} 24. Qd5+ {[%clk 0:01:16]}  Nf7 {[%clk 0:00:16]} 25. Re7 {[%clk 0:01:16]}  Rae8 {[%clk 0:00:14]} 26. Rxe8 {[%clk 0:01:15]}  Rxe8 {[%clk 0:00:09]} 27. Nf3 {[%clk 0:01:11]}  Qxg4 {[%clk 0:00:09]} 28. Nxd4 {[%clk 0:01:08]}  Bxd3 {[%clk 0:00:08]} 29. Qc6 {[%clk 0:01:05]}  Rd8 {[%clk 0:00:06]} 30. Ne6 {[%clk 0:00:49]}  Rd6 {[%clk 0:00:06]} 31. Qe8+ {[%clk 0:00:48]}  Kh7 {[%clk 0:00:04]} 32. Nf8+ {[%clk 0:00:47]}  Kg8 {[%clk 0:00:03]} 33. Ng6+ {[%clk 0:00:46]}  Kh7 {[%clk 0:00:02]} 34. Ne7 {[%clk 0:00:23]}  Be4 {[%clk 0:00:02]} 35. Qg8# {[%clk 0:00:24]} 1-0


[Site "https://www.chess.com"]